Cogmind - Beta 9.1 @@@ ROGUE MODE // 2019.11.03 @ 02:32:02 Player: zapruda Result: Destroyed by Y-45 Defender with Beam Rifle Performance ------------- Evolutions (1) 500 Regions Visited (2) 400 Robots Destroyed (45) 225 Value Destroyed (1059) 1059 Prototype IDs (4) 80 Alien Tech Used (0) 0 Bonus (27) 27 TOTAL SCORE: 2291 Bonus ------- High Alert Combat Kills 27 Cogmind --------- Core Integrity 0/400 Matter 286/300 Energy 242/280 System Corruption 0% Temperature Cool (10) Location -9/Materials Parts ------- Power (1) Heavy Ion Engine Propulsion (4) Aluminum Leg Utility (2) Improved Signal Interpreter Weapon (2) Heavy Hammer Inventory (4) Ion Engine Peak State ------------ Power Heavy Ion Engine Propulsion VTOL Module VTOL Module VTOL Module VTOL Module Utility Sensor Array Improved Signal Interpreter Weapon Improved EM Shotgun Improved EM Shotgun Inventory Ion Engine Heat Sink Power Shielding [Rating: 20] Favorites ----------- Power Ion Engine Engine Ion Engine Propulsion Light Treads Treads Light Treads Leg Aluminum Leg Flight Unit VTOL Module Utility Large Storage Unit Device Sensor Array Storage Large Storage Unit Processor Improved Signal Interpreter Protection Hardened Light Armor Plating Weapon Improved EM Shotgun Energy Gun Improved EM Shotgun Impact Weapon Heavy Hammer Build | -11 -10 -9 ------- Run | Scr Mat Mat Slots Evolved 2 | . . 2 Power . | . . . Propulsion 2 | . . 2 Utility . | . . . Weapon . | . . . Parts Attached 42 | 5 19 18 Power 7 | 1 4 2 Engine 7 | 1 4 2 Core . | . . . Reactor . | . . . Propulsion 18 | 2 6 10 Treads 5 | 2 2 1 Leg 9 | . 2 7 Wheel . | . . . Hover . | . . . Flight 4 | . 2 2 Utility 8 | 1 5 2 Device 2 | . 1 1 Storage 4 | 1 3 . Processor 1 | . 1 . Hackware . | . . . Protection 1 | . . 1 Artifact . | . . . Weapon 9 | 1 4 4 Energy Gun 8 | 1 4 3 Energy Cannon . | . . . Ballistic Gun . | . . . Ballistic Cannon . | . . . Launcher . | . . . Special Weapon . | . . . Impact Weapon 1 | . . 1 Slashing Weapon . | . . . Piercing Weapon . | . . . Special Melee Weapon . | . . . Unidentified Prototypes 2 | . 1 1 Parts Lost 21 | . 5 16 Power 2 | . 1 1 Propulsion 9 | . 2 7 Utility 3 | . . 3 Weapon 7 | . 2 5 Highest Loss Streak 6 | . 2 6 Average Slot Usage (%) 84 | . 86 80 Engine 12 | . 13 10 Treads 10 | . 14 . Leg 8 | . 4 18 Flight 9 | . 6 15 Device 4 | . 3 5 Storage 14 | . 20 . Processor 5 | . 3 11 Protection 1 | . . 3 Energy Gun 16 | . 19 10 Naked Turns . | . . . Heaviest Build 43 | 9 43 19 Greatest Support 40 | 40 40 40 Greatest Overweight (x) 14 | . 14 4 Average Overweight (x) . | . . . Largest Inventory Capacity 18 | 6 18 4 Average Capacity 9 | 5 12 4 Most Carried 14 | 5 14 4 Average Carried 6 | 2 7 2 Final Capacity 6 | 6 4 4 Final Carried 5 | 5 4 1 Class Distribution -------------------- 89% | Mutant 6% | Scavenger-Mutant 4% | Sprinter Dominant Class ---------------- Mutant | -10/Materials Mutant | -9/Materials Resources | -11 -10 -9 ----------- Run | Scr Mat Mat Matter Collected 511 | 226 125 160 Remotely . | . . . Salvage Created 1656 | . 920 736 Parts 112 | . 61 51 Haulers Intercepted . | . . . Recyclers Shooed . | . . . Parts Field Recycled . | . . . Retrieved Matter . | . . . Parts Self-Destructed . | . . . Prevented . | . . . Kills | -11 -10 -9 ------- Run | Scr Mat Mat Combat Hostiles Destroyed 31 | . 16 15 Guns 20 | . 11 9 AOE 8 | . 4 4 Classes Destroyed 8 | . 6 2 Worker 6 | . 4 2 Builder 3 | . 2 1 Recycler 2 | . 2 . Watcher 3 | . 2 1 Swarmer 7 | . 5 2 Grunt 20 | . 11 9 Duelist 1 | . . 1 Sentry 3 | . . 3 Best Kill Streak 8 | . 8 8 Combat Bots Only 6 | . 5 6 Max Kills in Single Turn 2 | . 2 2 Gunslinging . | . . . Exploded 2 | . 2 1 Melee . | . . . Uniques/NPCs Destroyed . | . . . Combat | -11 -10 -9 -------- Run | Scr Mat Mat Damage Taken 2829 | . 1114 1715 Core 625 | . 219 406 Absorbed by Shields 90 | . . 90 Core Remaining (%) 56 | 100 12 . Volleys Fired 109 | . 63 46 Largest 2 | . 2 2 Hottest 110 | . 90 110 Shots Fired 132 | . 70 62 Gun 132 | . 70 62 Cannon . | . . . Launcher . | . . . Special . | . . . Kinetic . | . . . Thermal 1 | . . 1 Explosive . | . . . Electromagnetic 131 | . 70 61 Robot Hit Streak 7 | . 6 7 Robot Miss Streak 6 | . 4 6 Penetration Max . | . . . Secondary Targets 2 | . 1 1 Max Gunslinging Chain 1 | . 1 1 Shots Hit Robots 101 | . 42 59 Core Hits 63 | . 35 28 Critical Hits . | . . . Critical Kills . | . . . Critical Parts Destroyed . | . . . Melee Attacks 19 | . . 19 Impact 19 | . . 19 Slashing . | . . . Piercing . | . . . Sneak Attacks 1 | . . 1 Combat Hostiles . | . . . Follow-up Attacks . | . . . Damage Inflicted 2058 | . 953 1105 Guns 1287 | . 689 598 Cannons . | . . . Explosions 474 | . 264 210 Melee 297 | . . 297 Ramming . | . . . Kinetic . | . . . Thermal 479 | . 264 215 Explosive . | . . . Electromagnetic 1282 | . 689 593 Impact 297 | . . 297 Slashing . | . . . Piercing . | . . . Highest Corruption 1 | . 1 . Average Corruption 1 | . 1 . Corruption Purged . | . . . Effects 2 | . 2 . Message Errors 1 | . 1 . Targeting Errors 1 | . 1 . Overload Shots . | . . . Overflow Damage 47 | . 1 46 Projectiles . | . . . Explosions 1 | . 1 . Melee 46 | . . 46 Knockbacks 2 | . . 2 Impact 2 | . . 2 Kinetic . | . . . Secondary . | . . . Self-Inflicted Damage 86 | . 34 52 Shots 3 | . 1 2 Rammed . | . . . Targets Rammed . | . . . Kicked . | . . . Crushed . | . . . Highest Temperature 395 | . 395 258 Average Temperature 87 | . 90 85 Received Heat Transfer 930 | . 330 600 Effects 1 | . 1 . Short Circuit 1 | . 1 . Siege Activations . | . . . Robots Corrupted 1 | . 1 . Combat Hostiles 1 | . 1 . Parts Fried 6 | . 2 4 Impact Corruptions 4 | . . 4 Robots Melted . | . . . Combat Hostiles . | . . . Parts Melted 1 | . . 1 Heat Transferred 605 | . 350 255 Parts Sabotaged . | . . . Parts Stolen . | . . . Parts Stripped . | . . . Power Chain Reactions 9 | . 4 5 Missiles Intercepted . | . . . Alert | -11 -10 -9 ------- Run | Scr Mat Mat Peak Influence 469 | . 324 469 Average Influence 210 | . 181 312 Maximum Alert Level 2 | . 1 2 Low Security (%) 46 | . . . Level 1 41 | . . . Level 2 11 | . . . Level 3 . | . . . Level 4 . | . . . Level 5 . | . . . High Security . | . . . Max Security . | . . . Squads Dispatched 10 | . 4 6 Investigation 5 | . 4 1 Extermination . | . . . Reinforcement 5 | . . 5 Assault . | . . . Garrison . | . . . Intercept . | . . . Construction Impeded . | . . . Haulers Reinforced . | . . . Stealth | -11 -10 -9 --------- Run | Scr Mat Mat Distress Signals 3 | . 2 1 Communications Jammed . | . . . Distress Signals . | . . . Times Spotted 64 | . 26 38 Peak Tracking Total 14 | . 6 14 Tactical Retreats 8 | . 1 7 Traps | -11 -10 -9 ------- Run | Scr Mat Mat Traps Triggered 3 | . 2 1 Indirectly . | . . . Trap Hack Attempts . | . . . Triggered . | . . . Disarmed . | . . . Reprogrammed . | . . . Reused . | . . . Traps Extracted . | . . . Installed . | . . . Triggered . | . . . Machines | -11 -10 -9 ---------- Run | Scr Mat Mat Machines Disabled 2 | . 2 . Max in Single Turn 1 | . 1 . Machines Sabotaged . | . . . Garrisons Compromised . | . . . Overloaded Fab Kills . | . . . Fab Network Shutdowns . | . . . Hacking | -11 -10 -9 --------- Run | Scr Mat Mat Machines Accessed 9 | . 8 1 Terminals 7 | . 6 1 Fabricators . | . . . Repair Stations 1 | . 1 . Recycling Units 1 | . 1 . Scanalyzers . | . . . Garrison Access . | . . . Total Hacks 34 | . 32 2 Successful 18 | . 18 . Failed 16 | . 14 2 Catastrophic 2 | . 2 . Database Lockouts . | . . . Manual . | . . . Terminals 24 | . 22 2 Fabricators . | . . . Repair Stations 9 | . 9 . Recycling Units 1 | . 1 . Scanalyzers . | . . . Garrison Access . | . . . Terminal Hacks 11 | . 11 . Robot Analysis 1 | . 1 . Prototype ID Bank 1 | . 1 . Terminal Index 1 | . 1 . Alert Level 3 | . 3 . Maintenance Status 1 | . 1 . Surveillance Status 2 | . 2 . Assault Status 1 | . 1 . Hauler Manifests 1 | . 1 . Fabricator Hacks . | . . . Repair Station Hacks 6 | . 6 . Scan Component 3 | . 3 . Repair 3 | . 3 . Recycling Unit Hacks 1 | . 1 . Report Inventory 1 | . 1 . Scanalyzer . | . . . Garrison Access Hacks . | . . . Unauthorized Hacks . | . . . Terminals . | . . . Fabricators . | . . . Repair Stations . | . . . Recycling Units . | . . . Scanalyzers . | . . . Garrison Access . | . . . Data Cores Recovered . | . . . Used . | . . . Hacking Detections 7 | . 6 1 Full Trace Events 4 | . 4 . Feedback Events 1 | . 1 . Corruption 1 | . 1 . Feedback Blocked . | . . . Robot Schematics Acquired . | . . . Robots Built . | . . . Matter . | . . . Time . | . . . Total Robot Build Rating . | . . . Part Schematics Acquired . | . . . Parts Built . | . . . Matter . | . . . Time . | . . . Total Part Build Rating . | . . . Parts Repaired 3 | . 3 . Time 78 | . 78 . Parts Recycled . | . . . Recycled Matter . | . . . Retrieved Matter . | . . . Retrieved Components . | . . . Parts Scanalyzed . | . . . Part Schematics Acquired . | . . . Parts Damaged . | . . . Bothacking | -11 -10 -9 ------------ Run | Scr Mat Mat Used RIF Installer . | . . . Robots Hacked . | . . . Non-combat . | . . . Combat . | . . . Robot Hacks Applied . | . . . Relay Couplers Released . | . . . Robots Rewired . | . . . Allies Hacked . | . . . Hacks Repelled . | . . . Allies | -11 -10 -9 -------- Run | Scr Mat Mat Total Allies . | . . . Largest Group . | . . . Highest-Rated Group . | . . . Highest-Rated Ally . | . . . Total Orders . | . . . Ally Attacks . | . . . Total Damage . | . . . Kills . | . . . Allies Corrupted . | . . . Allies Melted . | . . . Intel | -11 -10 -9 ------- Run | Scr Mat Mat Robot Analysis Total 1 | . 1 . Derelict Logs Recovered . | . . . Drone Launches . | . . . Drone Recoveries . | . . . Exploration | -11 -10 -9 ------------- Run | Scr Mat Mat Turns Passed 1578 | 77 1042 459 Spaces Moved 959 | 41 523 395 Core 10 | 2 6 2 Treads 287 | 39 248 . Legs 212 | . 90 122 Wheels . | . . . Hover . | . . . Flight 450 | . 179 271 Fastest Speed 31 | 50 117 31 Average Speed 118 | 154 157 62 Slowest Speed 750 | 160 750 250 Overloaded Moves . | . . . Propulsion Burnouts . | . . . Robots Hopped . | . . . Cave-ins Triggered . | . . . Exploration Rate (%) 38 | 4 65 45 Regions Visited 2 Branch Regions . Pre-discovered Areas . | . . . Known Exits Taken 1 | . 1 . Unknown Exits Taken 1 | 1 . . Scrap Searched . | . . . Spaces Dug . | . . . Terrain Destroyed 32 | . 14 18 Melee . | . . . Projectile . | . . . AOE 32 | . 14 18 Actions | -11 -10 -9 --------- Run | Scr Mat Mat Total 1244 | 55 679 510 Wait 41 | . 33 8 Move 957 | 40 522 395 Hop . | . . . Pick Up 52 | 10 25 17 Fast Attach 1 | . 1 . Attach 37 | 5 16 16 Detach . | . . . Swap 4 | . 2 2 Drop 24 | . 17 7 Fire 109 | . 63 46 Melee 19 | . . 19 Ram . | . . . Kick . | . . . Crush . | . . . Escape Stasis . | . . . Rewire . | . . . Trap . | . . . Miscellaneous . | . . . Route ------- -11/Scrapyard -10/Materials -9/Materials History --------- Turn | Location | Event 27 | -11/Scrapyard | Discovered new exit (range 15) 78 | -11/Scrapyard | Entered Materials 311 | -10/Materials | Build established: Mutant 447 | -10/Materials | Repaired Beam Cannon 447 | -10/Materials | Repaired Lgt. Treads 473 | -10/Materials | Repaired Lgt. Treads 619 | -10/Materials | Core integrity fell below 50% 657 | -10/Materials | Core integrity fell below 20% 742 | -10/Materials | Discovered new exit (range 16) 1057 | -10/Materials | Identified exit to Materials 1120 | -10/Materials | Entered another Materials area 1120 | -9/Materials | Evolved 2 slots: Propulsion x2 1323 | -9/Materials | Lost 3 parts (1n1u1w) 1444 | -9/Materials | Lost 3 parts (1n2w) 1532 | -9/Materials | Core integrity fell below 50% 1571 | -9/Materials | Core integrity fell below 20% 1579 | -9/Materials | Destroyed by Y-45 Defender with Beam Rifle Last Messages --------------- K-01 Serf knocked back. Destroyed Heat Sink. G-34 Mercenary system corrupted by crushing effect. G-34 Mercenary system terminally corrupted. Sml. Laser fried. Aluminum Leg destroyed. Acquired Aluminum Leg. Acquired 50 matter. Acquired Ion Engine. Acquired Aluminum Leg. G-34 Mercenary knocked back. Hrd. Light Armor Plating destroyed. Destroyed Sml. Laser. Destroyed Heat Sink. G-34 Mercenary system corrupted by crushing effect. G-34 Mercenary system terminally corrupted. Aluminum Leg fried. Aluminum Leg destroyed. Hvy. Ion Engine destroyed. Aluminum Leg destroyed. Map ----- +----------------------------------------------------+ | | | | | | | | | | | | | | | | | | | | | | | | | | | | | | | | | | | | | ??##############?????????????????????????????????? | | ??# #?????????????????????????????????? | | ??# " """"" #????????###########??????????????? | | ??# """"""""" #????????# | #??????????????? | | ??# """ """ #????????# T #??????????????? | | ### #??####### o #??????????????? | | #######+######### Y g #??????????????? | | #????# T ###@""" """ #??????????????? | | ###### #?#g""" """ #???????????#### | | #?# """g""" #???????????# | | ### % #???????????# " | | ###+################### " | | # " | | ###?????# # | | #???????# # " | | #???????# + " | | #???????# # " | | # #####"# #???????# # | | #+####### #" """""""############ #???????# # " | | ## ##### # ####??????????# ######### # " | | ## #???#####?????????????# ## # #] " | | ## #?????????????????????# ## # # | | ## #?????????????????#####+## + #### | | ## #?????###?????????# # # #??? | | ## #???? #?????????# """# # #??? | | ]## ##?? #?????????# """# # #### | | # #? #?????????# """######## # | | # # "T" ??????????# #??????# # | | / + """ ??????????# #??????# # | | % # # #?????????####+########## + | | ####+###!%!###+##?#?????????# # | | ### #???????????# # | +----------------------------------------------------+ Best States ------------- Heat Dissipation 28 Energy Generation 14 Energy Capacity 280 Matter Stores 300 Matter Capacity 300 Sight Range 16 Robot Scan Range 10 Terrain Scan Density 10 Armor Coverage 150 Evasion (%) 63 Recoil Reduction 2 Item Schematics ----------------- None Robot Schematics ------------------ None Fabricated ------------ Nothing Alien Tech Used ----------------- None Achievements -------------- Power Corrupts Challenges ------------ None Game ------ Seed CoreParticleLauncher Manual? 0 Play Time 00:24:12 Cumulative 6.0 hours Start 2019.11.02 @ 23:13:25 End 2019.11.03 @ 02:32:02 Sessions 1 Manual Loads 0 Difficulty Rogue Special Mode None Game No. 14 Rogue 14 Adventurer 0 Explorer 0 Win Type - Total 0 Types 0/0/0/0/0/0/0 Lore% 3 Gallery% 15 Achievement% 9 Wizard Run 0 Options --------- ASCII 0 Keyboard 0 Movement Mouse Keybinds 0 Fullscreen 1 Font 18/SmallcapsGlow Map View 76x50 Tactical HUD 0 Map Filters NONE Filters NONE Steam 1 RUN: ed800299-ccf2-490e-af60-b698f1853e67